Cogmind - Beta 13 @@@ ROGUE MODE // 2024.04.18 @ 11:22:40 Player: Midas Result: Destroyed by G-34 Mercenary with Small Laser Performance ------------- Evolutions (1) 500 Regions Visited (2) 400 Robots Destroyed (26) 130 Value Destroyed (621) 621 Prototype IDs (0) 0 Alien Tech Used (0) 0 Bonus (0) 0 TOTAL SCORE: 1651 Bonus ------- None Cogmind --------- Core Integrity 0/400 Matter 300/300 Energy 99/100 System Corruption 0% Temperature Cool (6) Movement Core (800) Ox15 Location -9/Materials Parts ------- > --- POWER (1) -------- (None) > --- PROPULSION (3) --- (None) > --- UTILITY (3) ------ Small Storage Unit High-capacity Storage Unit > --- WEAPON (2) ------- Hammer > --- INVENTORY (20) --- Light Treads Light Treads Aluminum Leg Aluminum Leg Aluminum Leg Aluminum Leg Light Assault Rifle Peak State ------------ > --- POWER ------------ Light Nuclear Core > --- PROPULSION ------- Light Treads Light Treads Light Treads > --- UTILITY ---------- Small Storage Unit High-capacity Storage Unit Medium Matter Pod > --- WEAPON ----------- Light Assault Rifle Shotgun > --- INVENTORY -------- Light Ion Engine Aluminum Leg Aluminum Leg Aluminum Leg Aluminum Leg Light Assault Rifle Light Assault Rifle Hammer [Rating: 12] Favorites ----------- Power Light Nuclear Core Engine Light Ion Engine Power Core Light Nuclear Core Propulsion Aluminum Leg Treads Light Treads Leg Aluminum Leg Utility Small Storage Unit Storage Small Storage Unit Processor Targeting Computer Weapon Light Assault Rifle Energy Gun Medium Laser Ballistic Gun Light Assault Rifle Impact Weapon Hammer Build | -11 -10 -9 ------- Run | Yrd Mat Mat Slots Evolved 2 | . . 2 Power . | . . . Propulsion 1 | . . 1 Utility 1 | . . 1 Weapon . | . . . Parts Attached 25 | . 10 15 Power 3 | . 1 2 Engine 2 | . . 2 Core 1 | . 1 . Reactor . | . . . Propulsion 11 | . 4 7 Treads 5 | . . 5 Leg 6 | . 4 2 Wheel . | . . . Hover . | . . . Flight . | . . . Utility 4 | . 3 1 Device . | . . . Storage 2 | . 1 1 Processor 2 | . 2 . Hackware . | . . . Protection . | . . . Artifact . | . . . Weapon 7 | . 2 5 Energy Gun . | . . . Energy Cannon . | . . . Ballistic Gun 6 | . 2 4 Ballistic Cannon . | . . . Launcher . | . . . Special Weapon . | . . . Impact Weapon 1 | . . 1 Slashing Weapon . | . . . Piercing Weapon . | . . . Special Melee Weapon . | . . . Unidentified Prototypes . | . . . Parts Lost 11 | . 1 10 Power 3 | . . 3 Propulsion 3 | . . 3 Utility 2 | . 1 1 Weapon 3 | . . 3 Highest Loss Streak 6 | . 1 6 To Critical Strikes . | . . . Average Slot Usage (%) 93 | . 97 89 Engine 2 | . 3 2 Core 8 | . 10 7 Treads 12 | . . 20 Leg 16 | . 28 8 Storage 25 | . 20 29 Processor 2 | . 5 . Energy Gun 9 | . 14 6 Ballistic Gun 12 | . 14 11 Impact Weapon 1 | . . 2 Naked Turns . | . . . Heaviest Build 56 | 13 15 56 Greatest Support 60 | 20 20 60 Greatest Overweight (x) 16 | . . 16 Average Overweight (x) . | . . . Largest Inventory Capacity 20 | . 8 20 Average Capacity 13 | . 8 16 Most Carried 9 | . 8 9 Average Carried 7 | . 6 7 Final Capacity 20 | 8 8 20 Final Carried 7 | 6 7 7 Class Distribution -------------------- 80% | Mutant 19% | Scavenger-Mutant Dominant Class ---------------- Mutant | -10/Materials Mutant | -9/Materials Resources | -11 -10 -9 ----------- Run | Yrd Mat Mat Matter Collected 592 | 200 88 304 Remotely . | . . . Salvage Created 762 | . 208 554 Parts 48 | . 10 38 Haulers Intercepted . | . . . Recyclers Shooed . | . . . Parts Field Recycled . | . . . Retrieved Matter . | . . . Parts Self-Destructed . | . . . Prevented . | . . . Kills | -11 -10 -9 ------- Run | Yrd Mat Mat Combat Hostiles Destroyed 24 | . 4 20 Melee 2 | . . 2 Guns 22 | . 4 18 Classes Destroyed 5 | . 2 3 Watcher 2 | . 1 1 Swarmer 12 | . . 12 Grunt 8 | . 4 4 Brawler 1 | . . 1 Sentry 3 | . . 3 Best Kill Streak 4 | . 2 4 Combat Bots Only 4 | . 2 4 Max Kills in Single Turn 2 | . 1 2 Gunslinging 1 | . . 1 Exploded . | . . . Melee 1 | . . 1 Uniques/NPCs Destroyed . | . . . Combat | -11 -10 -9 -------- Run | Yrd Mat Mat Hostile Shots Fired 255 | . 22 233 Missed 67 | . 3 64 Damage Taken 2229 | . 243 1986 Core 472 | . 67 405 Absorbed by Shields . | . . . Core Remaining (%) 86 | 100 73 . Volleys Fired 76 | . 13 63 Largest 2 | . 2 2 Hottest 70 | . 70 70 Shots Fired 130 | . 26 104 Gun 130 | . 26 104 Cannon . | . . . Launcher . | . . . Special . | . . . Kinetic 86 | . 13 73 Thermal 44 | . 13 31 Explosive . | . . . Electromagnetic . | . . . Robot Hit Streak 7 | . 6 7 Robot Miss Streak 3 | . 1 3 Penetration Max . | . . . Secondary Targets 4 | . . 4 Max Gunslinging Chain 1 | . . 1 Shots Hit Robots 89 | . 17 72 Core Hits 44 | . 12 32 Critical Kills . | . . . Critical Parts Destroyed 1 | . . 1 Critical Strikes 1 | . . 1 Smash 1 | . . 1 Melee Attacks 15 | . . 15 Impact 15 | . . 15 Slashing . | . . . Piercing . | . . . Sneak Attacks . | . . . Combat Hostiles . | . . . Follow-up Attacks . | . . . Damage Inflicted 1114 | . 216 898 Guns 931 | . 216 715 Cannons . | . . . Explosions . | . . . Melee 183 | . . 183 Ramming . | . . . Kinetic 542 | . 78 464 Thermal 389 | . 138 251 Explosive . | . . . Electromagnetic . | . . . Impact 183 | . . 183 Slashing . | . . . Piercing . | . . . Highest Corruption . | . . . Average Corruption . | . . . Corruption Purged . | . . . Corruption Blocked . | . . . Overload Shots . | . . . Overflow Damage 27 | . . 27 Projectiles . | . . . Explosions . | . . . Melee 27 | . . 27 Knockbacks 1 | . . 1 Impact 1 | . . 1 Kinetic . | . . . Secondary . | . . . Self-Inflicted Damage . | . . . Shots . | . . . Rammed . | . . . Targets Rammed 1 | . . 1 Kicked 1 | . . 1 Crushed . | . . . Highest Temperature 207 | . 207 142 Average Temperature 55 | . 84 42 Received Heat Transfer 840 | . 135 705 Siege Activations . | . . . Robots Corrupted . | . . . Combat Hostiles . | . . . Parts Fried 2 | . . 2 Impact Corruptions 2 | . . 2 Robots Melted . | . . . Combat Hostiles . | . . . Parts Melted 2 | . . 2 Heat Transferred 1147 | . 407 740 Parts Sabotaged . | . . . Parts Stolen . | . . . Parts Stripped . | . . . Power Chain Reactions . | . . . Alert | -11 -10 -9 ------- Run | Yrd Mat Mat Peak Influence 327 | . 112 327 Initial . | . . . Average 142 | . 57 202 Maximum Alert Level 1 | . . 1 Low Security (%) 75 | . 100 57 Level 1 24 | . . 42 Level 2 . | . . . Level 3 . | . . . Level 4 . | . . . Level 5 . | . . . High Security . | . . . Max Security . | . . . Squads Dispatched 1 | . . 1 Investigation . | . . . Extermination . | . . . Reinforcement 1 | . . 1 Assault . | . . . Garrison . | . . . Intercept . | . . . Searches Triggered . | . . . Construction Impeded . | . . . Haulers Reinforced . | . . . Active Scanning Responses . | . . . Cargo Convoy Interrupts . | . . . Stealth | -11 -10 -9 --------- Run | Yrd Mat Mat Distress Signals 4 | . 1 3 Communications Jammed . | . . . Distress Signals . | . . . Times Spotted 37 | . 6 31 Peak Tracking Total 8 | . 3 8 Tactical Retreats 5 | . . 5 Traps | -11 -10 -9 ------- Run | Yrd Mat Mat Traps Triggered . | . . . Indirectly . | . . . Trap Hack Attempts . | . . . Triggered . | . . . Disarmed . | . . . Reprogrammed . | . . . Reused . | . . . Traps Extracted . | . . . Installed . | . . . Triggered . | . . . Machines | -11 -10 -9 ---------- Run | Yrd Mat Mat Machines Disabled . | . . . Max in Single Turn . | . . . Machines Repaired . | . . . Machines Dismantled . | . . . Machines Sabotaged . | . . . Overloaded Fab Kills . | . . . Hacking | -11 -10 -9 --------- Run | Yrd Mat Mat Machines Accessed 4 | . 3 1 Terminals 3 | . 2 1 Fabricators . | . . . Repair Stations 1 | . 1 . Recycling Units . | . . . Scanalyzers . | . . . Garrison Access . | . . . Total Hacks 6 | . 4 2 Successful 4 | . 3 1 Failed 2 | . 1 1 Catastrophic . | . . . Database Lockouts . | . . . Manual . | . . . Terminals 5 | . 3 2 Fabricators . | . . . Repair Stations 1 | . 1 . Recycling Units . | . . . Scanalyzers . | . . . Garrison Access . | . . . Terminal Hacks 3 | . 2 1 Record 2 | . 2 . Emergency Access Points 1 | . . 1 Fabricator Hacks . | . . . Repair Station Hacks 1 | . 1 . Scan Component 1 | . 1 . Recycling Unit Hacks . | . . . Scanalyzer . | . . . Garrison Access Hacks . | . . . Unauthorized Hacks . | . . . Terminals . | . . . Fabricators . | . . . Repair Stations . | . . . Recycling Units . | . . . Scanalyzers . | . . . Garrison Access . | . . . Data Cores Recovered . | . . . Used . | . . . Hacking Detections 2 | . 2 . Full Trace Events . | . . . Feedback Events . | . . . Feedback Blocked . | . . . Robot Schematics Acquired . | . . . Robots Built . | . . . Authchips . | . . . Time . | . . . Total Robot Build Rating . | . . . Part Schematics Acquired . | . . . Parts Built . | . . . Authchips . | . . . Time . | . . . Total Part Build Rating . | . . . Parts Repaired . | . . . Time . | . . . Parts Recycled . | . . . Recycled Matter . | . . . Retrieved Matter . | . . . Retrieved Components . | . . . Parts Scanalyzed . | . . . Part Schematics Acquired . | . . . Parts Damaged . | . . . Bothacking | -11 -10 -9 ------------ Run | Yrd Mat Mat Used RIF Installer . | . . . Robots Hacked . | . . . Non-combat . | . . . Combat . | . . . Robot Hacks Applied . | . . . Relay Couplers Released . | . . . Fabnet Peak Effective % . | . . . Robots Rewired . | . . . Allies Hacked . | . . . Hacks Repelled . | . . . Allies | -11 -10 -9 -------- Run | Yrd Mat Mat Total Allies . | . . . Largest Group . | . . . Highest-Rated Group . | . . . Highest-Rated Ally . | . . . Total Orders . | . . . Ally Attacks . | . . . Total Damage . | . . . Kills . | . . . Allies Corrupted . | . . . Allies Melted . | . . . Intel | -11 -10 -9 ------- Run | Yrd Mat Mat Robot Analysis Total . | . . . Derelict Logs Recovered . | . . . Drone Launches . | . . . Drone Recoveries . | . . . Exploration | -11 -10 -9 ------------- Run | Yrd Mat Mat Turns Passed 1181 | . 490 691 Spaces Moved 583 | 1 288 294 Core 6 | . . 6 Treads 186 | . . 186 Legs 391 | 1 288 102 Wheels . | . . . Hover . | . . . Flight . | . . . Fastest Speed 120 | 120 120 120 Average Speed 139 | 120 120 159 Slowest Speed 850 | 120 120 850 Overloaded Moves . | . . . Propulsion Burnouts . | . . . Robots Hopped . | . . . Cave-ins Triggered . | . . . Exploration Rate (%) 25 | 1 49 27 Regions Visited 2 Branch Regions . Pre-discovered Areas . | . . . Known Exits Taken . | . . . Unknown Exits Taken 2 | 1 1 . Scrap Searched . | . . . Spaces Dug . | . . . Terrain Destroyed . | . . . Melee . | . . . Projectile . | . . . AOE . | . . . Terrain Rammed . | . . . Walls Destroyed . | . . . Machines Disabled . | . . . Actions | -11 -10 -9 --------- Run | Yrd Mat Mat Total 813 | . 410 403 Wait 96 | . 87 9 Move 581 | . 287 294 Hop . | . . . Pick Up 6 | . 3 3 Fast Attach 6 | . 4 2 Attach 5 | . . 5 Detach 1 | . 1 . Swap 14 | . 6 8 Drop 12 | . 9 3 Fire 76 | . 13 63 Melee 15 | . . 15 Ram . | . . . Kick 1 | . . 1 Crush . | . . . Escape Stasis . | . . . Rewire . | . . . Trap . | . . . Miscellaneous . | . . . Route ------- -11/Scrapyard -10/Materials (discovered 2 exits: *Mat / *Min) -9/Materials History --------- Turn | Location | Event 1 | -11/Scrapyard | Discovered new exit (range 0) 1 | -11/Scrapyard | Entered Materials 264 | -10/Materials | Discovered new exit (range 9) 274 | -10/Materials | Identified exit to Mines 461 | -10/Materials | Discovered new exit (range 16) 491 | -10/Materials | Entered another Materials area 491 | -9/Materials | Evolved 2 slots: Propulsion x1, Utility x1 955 | -9/Materials | Build established: Mutant 1126 | -9/Materials | Core integrity fell below 50% 1168 | -9/Materials | Core integrity fell below 20% 1181 | -9/Materials | Lost 6 parts (1p3n1u1w) 1182 | -9/Materials | Destroyed by G-34 Mercenary with Small Laser Last Messages --------------- 01120_ Lgt. Treads destroyed. 01120_ G-34 Mercenary overheating. 01122_ K-01 Serf collects debris. 01122_ Ion Engine melted. 01122_ Sml. Laser melted. 01122_ G-34 Mercenary destroyed. 01125_ K-01 Serf collects debris. 01138_ M-13 Machinist repairs G-34 Mercenary. 01138_ K-01 Serf collects debris. 01139_ Destroyed Lgt. Ion Engine. 01139_ W-16 Scout system corrupted by crushing effect. 01140_ W-16 Scout system terminally corrupted. 01140_ Hover Unit fried. 01140_ Visual Processing Unit fried. 01141_ K-01 Serf collects debris. 01146_ Lgt. Assault Rifle destroyed. 01147_ K-01 Serf collects debris. 01150_ Med. Matter Pod destroyed. 01163_ K-01 Serf cleans the Terminal. 01176_ U-05 Engineer builds a Door. Map ----- +----------------------------------------------------+ | ?????????????????????????????????????????????????? | | ?????????????????????????????????????????????????? | | ?????????????????????????????????????????????????? | | ????????????????????????????????????????## ??????? | | ???????????????????????????????????????? #????? | | ??????????????????????????????????????? ???### | | ??????????????????????????????????????? ???? | | ??????????????????????????????????????? ?????? | | ??????????????????????????????????????? ?????? | | ???????????????????????????????????????# #?????? | | ???????????????????????????????????????# #?????# | | ??????????????????????? ???????????????# #????? | | ?????????????????????? ???????????????# "#????? | | ?????????????????????? ?????????????# %#????? | | ?????????????????????? ????########## "#?????" | | ?????????????????????? ????# # #????"" | | ??????????????????????? ????# """ # #?# """ | | ??????????????????????? ????# """ # #?# | | ??????????###?????????? ????# """ !# #?# """ | | ??????????? ???????? ????# + [ #?# """ | | ???????????## ?????###+###??# ""[# ==#?? """ | | ???????????# ##### #??# o T" # #???? | | ???????????# k a #### "" #* ####### | | ???????????# u kk/ #=% | | ???????????# g ##########% * | | ???????????# ##### @ g k * | | ?????????????########## % ########## ##### | | ?????????????# #[%! #????????# #?# | | ?????????????# """ + #????????# #?# | | ?????????????# = """ # % ###??????# #?# | | ?????????????? """%# % # #??????# #?# | | ?????????????? ?#######/##+#"##?????# #?# | | ??????????????? """??## u " ##???## ### | | ??????????????! ""???#" [" #???# #### | | ?????????????? ""??##" # #???# | | ?????????????? ???# " # ##???# | | ?????????????#????????# " # #???# #### | | ??????????????????????# " #" #???########? | | ??????????????????????# " "##?????# ? | | ??????????????????????# " ""#??????# """ | | ??????????????????????##"""""" ""##??????# """ | | ???????????????????????# ###???????# """ | | ???????????????????????####### ###?????????# | | ?????????????????????????????###???????????# | | ???????????????????????????????????????????######? | | ?????????????????????????????????????????????????? | | ?????????????????????????????????????????????????? | | ?????????????????????????????????????????????????? | | ?????????????????????????????????????????????##### | | ????????????????????????????????????########## | +----------------------------------------------------+ Best States ------------- Heat Dissipation 28 Energy Generation 14 Energy Capacity 250 Matter Stores 400 Matter Capacity 400 Sight Range 16 Terrain Scan Density 10 Evasion (%) 55 Targeting Accuracy 5 Recoil Reduction 3 Item Schematics ----------------- None Robot Schematics ------------------ None Fabricated ------------ Nothing Alien Tech Used ----------------- None Achievements -------------- None Challenges ------------ None Game ------ Seed SpreadBombardmentShielding Manual? 0 Play Time 00:17:09 Cumulative 35.4 hours Start 2024.04.18 @ 11:03:52 End 2024.04.18 @ 11:22:40 Sessions 1 Manual Loads 0 Difficulty Rogue Special Mode None Game No. 52 Rogue 28 Adventurer 24 Explorer 0 Win Type - Total 0 Types 0/0/0/0/0/0/0/0/0 Lore% 16 Gallery% 31 Achievement% 21 Wizard Run 0 Options --------- Layout 1 ASCII 0 Keyboard 0 Movement Mouse Keybinds 0 Fullscreen 2 Font 28/X11 Map View 90x39 Zoom Use 0% Tactical HUD 1 Map Filters NONE Filters NONE Steam 1 RUN: 1323f471-015a-4441-ab0b-dc0082a11c91